bitfinex/quotes_BTCUSD_20241128
["timestamp","ask_amount","ask_price","bid_price","bid_amount"]
[1732767363046,0.008,95542.0,95541.0,0.21022841]
[1732767363287,0.0017164,95544.0,95543.0,0.104664]
[1732767363528,0.0017164,95544.0,95543.0,0.10651638]
[1732767363747,0.0017164,95544.0,95543.0,0.104664]
[1732767363980,0.0017164,95544.0,95541.0,0.10456141]
[1732767364412,0.0017164,95544.0,95541.0,0.20922741]
[1732767364662,0.0017164,95544.0,95541.0,0.10656141]
[1732767365142,0.0017164,95544.0,95541.0,0.10456141]
[1732767365598,0.0017164,95544.0,95541.0,0.10856141]
[1732767365836,0.0017164,95544.0,95542.0,0.104665]
[1732767366095,0.0017164,95544.0,95543.0,0.104664]
[1732767366350,0.0027164,95544.0,95543.0,0.35750921]
[1732767366596,0.0027164,95544.0,95543.0,0.39750921]
[1732767367088,0.0017164,95544.0,95543.0,0.39750921]
[1732767368579,0.0017164,95544.0,95543.0,0.40350921]
[1732767368836,0.0027164,95544.0,95543.0,0.58298146]
[1732767369312,0.0087164,95544.0,95543.0,0.39750921]
[1732767369801,0.0087164,95544.0,95543.0,0.47127079]
[1732767369802,0.0157164,95544.0,95543.0,0.47127079]
[1732767370033,0.0157164,95544.0,95543.0,0.39850921]
[1732767370512,0.0017164,95544.0,95543.0,0.39750921]
[1732767370752,0.0017164,95544.0,95543.0,0.38750921]
[1732767370992,0.0017164,95544.0,95543.0,0.38850921]
[1732767371474,0.0017164,95544.0,95543.0,0.38750921]
[1732767371722,0.0027164,95544.0,95543.0,0.41550921]
[1732767372206,0.0027164,95544.0,95543.0,0.38750921]
[1732767372475,0.0037164,95544.0,95543.0,0.37350921]
[1732767372725,0.0037164,95544.0,95543.0,0.38150921]
[1732767372985,0.0037164,95544.0,95543.0,0.40550921]
[1732767372986,0.0017164,95544.0,95543.0,0.40550921]
[1732767373216,0.0017164,95544.0,95543.0,0.54471758]
[1732767373452,0.0027164,95544.0,95543.0,0.55371758]
[1732767373681,0.0017164,95544.0,95543.0,0.54471758]
[1732767374150,0.0017164,95544.0,95543.0,0.40550921]
[1732767374382,0.0017164,95544.0,95543.0,0.5446262]
[1732767374626,0.0017164,95544.0,95543.0,0.5266262]
[1732767374868,0.0017164,95544.0,95543.0,0.40650921]
[1732767375110,0.0017164,95544.0,95543.0,0.39550921]
[1732767375111,0.0027164,95544.0,95543.0,0.39550921]
[1732767375346,0.0017164,95544.0,95543.0,0.37750921]
[1732767375587,0.0087164,95544.0,95543.0,0.35550921]
[1732767375816,0.0087164,95544.0,95543.0,0.36350921]
[1732767376045,0.0017164,95544.0,95543.0,0.36350921]
[1732767376308,0.0077164,95544.0,95543.0,0.35450921]
[1732767376537,0.0077164,95544.0,95543.0,0.36350921]
[1732767376785,0.0087164,95544.0,95543.0,0.37250921]
[1732767377726,0.0087164,95544.0,95543.0,0.36350921]
[1732767378162,0.0087164,95544.0,95543.0,0.37250921]
[1732767378610,0.0017164,95544.0,95543.0,0.37350921]
[1732767379119,0.0017164,95544.0,95543.0,0.40650921]
[1732767379349,0.0027164,95544.0,95543.0,0.55462333]
[1732767379561,0.0027164,95544.0,95543.0,0.41550921]
[1732767379797,0.0027164,95544.0,95543.0,0.55460254]
[1732767380249,0.0027164,95544.0,95543.0,0.51159863]
[1732767380481,0.0027164,95544.0,95543.0,0.37250921]
[1732767380693,0.0027164,95544.0,95543.0,0.39550921]
[1732767380942,0.0027164,95544.0,95543.0,0.37750921]
[1732767380943,0.0017164,95544.0,95543.0,0.37750921]
[1732767381624,0.0017164,95544.0,95543.0,0.38650921]
[1732767382497,0.0027164,95544.0,95543.0,0.39550921]
[1732767383845,0.0027164,95544.0,95543.0,0.40550921]
[1732767384371,0.0027164,95544.0,95543.0,0.41550921]
[1732767384582,0.0027164,95544.0,95543.0,0.60099606]
[1732767385249,0.00094181,95580.0,95550.0,0.124657]
[1732767385505,0.209218,95594.0,95563.0,0.02]
[1732767385741,0.00094181,95593.0,95569.0,0.15]
[1732767385977,0.104623,95581.0,95574.0,0.15]
[1732767386211,0.522995,95603.0,95575.0,0.20747421]
[1732767386446,0.104619,95585.0,95577.0,0.104627]
[1732767386914,0.104625,95579.0,95578.0,0.10284521]
[1732767387138,0.209194,95605.0,95578.0,0.10284521]
[1732767387139,0.107623,95581.0,95578.0,0.10284521]
[1732767387369,0.104623,95581.0,95578.0,0.10284521]
[1732767387622,0.104622,95583.0,95578.0,0.10284521]
[1732767387848,0.209237,95586.0,95578.0,0.10284521]
[1732767388095,0.209237,95586.0,95578.0,0.10469691]
[1732767388333,0.10462,95584.0,95578.0,0.10469691]
[1732767388538,0.10462,95584.0,95578.0,0.20747121]
[1732767388767,0.104619,95585.0,95579.0,0.104624]
[1732767389011,0.002,95583.0,95579.0,0.20746921]
[1732767389467,0.104619,95585.0,95579.0,0.20746921]
[1732767389902,0.104617,95587.0,95579.0,0.20746921]
[1732767390346,0.209232,95588.0,95579.0,0.20746921]
[1732767390578,0.104619,95585.0,95579.0,0.20932089]
[1732767390805,0.104619,95585.0,95579.0,0.21046921]
[1732767391022,0.209209,95598.0,95579.0,0.10584521]
[1732767391240,0.00094181,95597.0,95579.0,0.10769688]
[1732767391456,0.104618,95586.0,95579.0,0.10769688]
[1732767391672,0.104618,95586.0,95579.0,0.10584521]
[1732767392161,0.104618,95586.0,95580.0,0.104623]
[1732767393478,0.104618,95585.0,95580.0,0.002]
[1732767393698,0.418418,95598.0,95580.0,0.002]
[1732767393918,0.104618,95586.0,95580.0,0.002]
[1732767394130,0.104619,95585.0,95580.0,0.002]
[1732767394358,0.104621,95583.0,95580.0,0.002]
[1732767394599,0.20923,95589.0,95580.0,0.004]
[1732767394832,0.104618,95586.0,95580.0,0.108623]
[1732767395061,0.104618,95586.0,95580.0,0.106623]
[1732767395524,0.104618,95586.0,95580.0,0.107623]
[1732767395748,0.104602,95600.0,95593.0,0.104609]
[1732767396003,0.209178,95612.0,95590.0,0.15126406]
[1732767396004,0.004,95598.0,95590.0,0.15126406]
[1732767396231,0.004,95598.0,95596.0,0.104605]
[1732767396663,0.00094181,95607.0,95587.0,0.15]
[1732767396896,0.209189,95608.0,95596.0,0.104606]
[1732767397119,0.1046,95602.0,95596.0,0.104606]
[1732767397336,0.104602,95601.0,95595.0,0.15]
[1732767397581,0.00094181,95603.0,95595.0,0.15]
[1732767397801,0.209196,95604.0,95596.0,0.104605]
[1732767398015,0.104601,95602.0,95596.0,0.104605]
[1732767398241,0.104601,95601.0,95596.0,0.106605]
[1732767398682,0.209196,95604.0,95597.0,0.104605]
[1732767398683,0.104598,95604.0,95597.0,0.104605]
[1732767398932,0.1046,95603.0,95597.0,0.104605]
[1732767399363,0.1046,95602.0,95596.0,0.106606]
[1732767399647,0.104598,95604.0,95598.0,0.104604]
[1732767399862,0.209187,95608.0,95598.0,0.104604]
[1732767399863,0.104599,95603.0,95598.0,0.104604]
[1732767400074,0.104601,95601.0,95596.0,0.002]
[1732767400311,0.00094181,95604.0,95597.0,0.003]
[1732767400521,0.2092,95602.0,95597.0,0.003]
[1732767400741,0.104603,95600.0,95594.0,0.254608]
[1732767401028,0.104604,95599.0,95597.0,0.002]
[1732767401283,0.104604,95598.0,95597.0,0.002]
[1732767401520,0.104606,95597.0,95590.0,0.104612]
[1732767401740,0.104607,95596.0,95591.0,0.10284521]
[1732767401969,0.209206,95600.0,95591.0,0.10284521]
[1732767402244,0.209207,95599.0,95591.0,0.10284521]
[1732767402474,0.209206,95600.0,95591.0,0.10284521]
[1732767402475,0.104607,95596.0,95591.0,0.10284521]
[1732767402705,0.209198,95604.0,95591.0,0.10284521]
[1732767402931,0.104604,95599.0,95598.0,0.003]
[1732767403153,0.104604,95598.0,95593.0,0.104609]
[1732767403601,0.209198,95604.0,95591.0,0.31706821]
[1732767403822,0.0017156,95606.0,95594.0,0.15]
[1732767404053,0.0017156,95606.0,95588.0,0.15126406]
[1732767404054,0.0017156,95606.0,95603.0,0.104598]
[1732767404269,0.0017156,95606.0,95597.0,0.00500348]
[1732767404483,0.0017156,95606.0,95605.0,0.104597]
[1732767405796,0.0017156,95606.0,95605.0,0.106597]
[1732767406473,0.0017156,95606.0,95605.0,0.256597]
[1732767407135,0.0017156,95606.0,95605.0,0.260597]
[1732767407383,0.0027156,95606.0,95605.0,0.260597]
[1732767407847,0.0027156,95606.0,95605.0,0.37963676]
[1732767408050,0.0027156,95606.0,95605.0,0.38363676]
[1732767408512,0.0027156,95606.0,95605.0,0.37963676]
[1732767408946,0.0027156,95606.0,95605.0,0.38363676]
[1732767411451,0.0027156,95606.0,95605.0,0.37963676]
[1732767411666,0.0027156,95606.0,95605.0,0.38463676]
[1732767412101,0.0017156,95606.0,95605.0,0.37863676]
[1732767412817,0.0017156,95606.0,95605.0,0.37363676]
[1732767413494,0.0017156,95606.0,95605.0,0.37963676]
[1732767413942,0.0017156,95606.0,95605.0,0.37363676]
[1732767414185,0.0017156,95606.0,95605.0,0.39163676]
[1732767415973,0.0017156,95606.0,95605.0,0.39163676]
[1732767418669,0.0017156,95606.0,95605.0,0.40163676]
[1732767418902,0.0017156,95606.0,95605.0,0.42463676]
[1732767419577,0.0017156,95606.0,95605.0,0.43463676]
[1732767422078,0.0017156,95606.0,95605.0,0.39163676]
[1732767422305,0.1063106,95606.0,95605.0,0.12084521]
[1732767422538,0.1063106,95606.0,95605.0,0.018]
[1732767423431,0.1063106,95606.0,95605.0,0.009]
[1732767423889,0.1063106,95606.0,95605.0,0.013]
[1732767424133,0.104607,95596.0,95590.0,0.01597329]
[1732767424351,0.104606,95597.0,95592.0,0.15]
[1732767424579,0.104603,95600.0,95594.0,0.254608]
[1732767424798,0.0017156,95606.0,95594.0,0.25284521]
[1732767425036,0.209198,95603.0,95594.0,0.25284521]
[1732767425511,0.104606,95597.0,95594.0,0.25284521]
[1732767425722,0.2092,95602.0,95594.0,0.25284521]
[1732767425946,0.104604,95599.0,95594.0,0.25284521]
[1732767426370,0.209202,95601.0,95594.0,0.25584521]
[1732767426588,0.209196,95604.0,95594.0,0.36045421]
[1732767426801,0.209198,95603.0,95594.0,0.36045421]
[1732767427017,0.209198,95603.0,95594.0,0.25584521]
[1732767427235,0.104607,95595.0,95594.0,0.003]
[1732767427483,0.10554881,95595.0,95594.0,0.01]
[1732767427725,0.10554881,95595.0,95594.0,0.007]
[1732767427945,0.209232,95588.0,95579.0,0.104625]
[1732767428232,0.104617,95586.0,95580.0,0.10284521]
[1732767428454,0.209232,95588.0,95580.0,0.10284521]
[1732767428455,0.209232,95588.0,95580.0,0.20746821]
[1732767428675,0.209233,95587.0,95580.0,0.10284521]
[1732767428887,0.00094181,95586.0,95570.0,0.01598778]
[1732767429105,0.01564215,95602.0,95572.0,0.15]
[1732767429106,0.104628,95577.0,95572.0,0.15]
[1732767429324,0.01,95610.0,95568.0,0.239273]
[1732767429325,0.104636,95569.0,95568.0,0.03]
[1732767429543,0.104655,95552.0,95543.0,0.0008576]
[1732767429984,0.10559681,95552.0,95543.0,0.0008576]
[1732767430868,0.22465335,95552.0,95543.0,0.0008576]
[1732767431081,0.22371154,95552.0,95543.0,0.0008576]
[1732767431296,0.25671154,95552.0,95543.0,0.0008576]
[1732767431507,0.26071154,95552.0,95543.0,0.0008576]
[1732767431729,0.22771154,95552.0,95543.0,0.0008576]
[1732767431978,0.109655,95552.0,95543.0,0.0008576]
[1732767432213,0.11059681,95552.0,95543.0,0.0008576]
[1732767432435,0.10959681,95552.0,95543.0,0.0008576]
[1732767432879,0.11059681,95552.0,95543.0,0.0008576]
[1732767433321,0.10659681,95552.0,95543.0,0.0008576]
[1732767433767,0.10959681,95552.0,95551.0,0.0018575]
[1732767434000,0.10659681,95552.0,95551.0,0.0008575]
[1732767434449,0.10959681,95552.0,95551.0,0.0018575]
[1732767434666,0.10559681,95552.0,95551.0,0.0008575]
[1732767435144,0.10559681,95552.0,95551.0,0.0018575]
[1732767435145,0.10959681,95552.0,95551.0,0.0018575]
[1732767435369,0.10659681,95552.0,95551.0,0.0008575]
[1732767435594,0.10559681,95552.0,95551.0,0.0008575]
[1732767436072,0.10659681,95552.0,95551.0,0.0008575]
[1732767437193,0.10959681,95552.0,95551.0,0.0018575]
[1732767437628,0.10659681,95552.0,95551.0,0.0008575]
[1732767437859,0.10559681,95552.0,95551.0,0.0008575]
[1732767438092,0.10859681,95552.0,95551.0,0.0008575]
[1732767438339,0.10959681,95552.0,95551.0,0.0008575]
[1732767438781,0.107655,95552.0,95551.0,0.0008575]
[1732767439008,0.107655,95552.0,95531.0,0.0004]
[1732767439009,0.104676,95532.0,95531.0,0.0004]
[1732767439250,0.20752121,95532.0,95531.0,0.0004]
[1732767439461,0.20983755,95532.0,95531.0,0.0004]
[1732767440822,0.21183755,95532.0,95531.0,0.0004]
[1732767441942,0.22774004,95532.0,95531.0,0.0004]
[1732767442180,0.2254237,95532.0,95531.0,0.0004]
[1732767444087,0.12257849,95532.0,95531.0,0.0004]
[1732767444303,0.12489485,95532.0,95531.0,0.0004]
[1732767446629,0.002,95532.0,95531.0,0.0004]
[1732767447336,0.002,95532.0,95531.0,0.20792321]
[1732767447802,0.104664,95544.0,95534.0,0.104674]
[1732767448018,0.0023157,95548.0,95531.0,0.31322054]
[1732767448019,0.209321,95547.0,95535.0,0.10284521]
[1732767448242,0.209325,95545.0,95535.0,0.10284521]
[1732767448717,0.104665,95543.0,95535.0,0.10284521]
[1732767448962,0.0023157,95548.0,95535.0,0.10284521]
[1732767449181,0.209323,95546.0,95535.0,0.10284521]
[1732767449393,0.104665,95543.0,95535.0,0.10384521]
[1732767449609,0.209317,95549.0,95535.0,0.10384521]
[1732767449818,0.313981,95547.0,95535.0,0.10384521]
[1732767450041,0.104665,95543.0,95535.0,0.10384521]
[1732767450274,0.104666,95542.0,95535.0,0.10384521]
[1732767450535,0.001715,95552.0,95537.0,0.15]
[1732767450809,0.001715,95552.0,95551.0,0.104656]
[1732767451280,0.001715,95552.0,95551.0,0.20750121]
[1732767451707,0.00231524,95572.0,95554.0,0.209305]
[1732767451924,0.5438,95605.0,95552.0,0.20931]
[1732767451925,0.00231511,95578.0,95560.0,0.15126406]
[1732767452157,0.104624,95581.0,95572.0,0.104632]
[1732767452391,0.104625,95579.0,95572.0,0.104632]
[1732767452627,0.104625,95579.0,95569.0,0.209272]
[1732767452628,0.00231494,95580.0,95569.0,0.209272]
[1732767452855,0.00231494,95580.0,95574.0,0.10463]
[1732767453070,0.104628,95577.0,95562.0,0.104644]
[1732767453303,0.104628,95576.0,95564.0,0.15]
[1732767453539,0.104628,95577.0,95565.0,0.10284521]
[1732767453759,0.209235,95586.0,95566.0,0.209279]
[1732767453976,0.209226,95591.0,95573.0,0.104631]
[1732767453977,0.20924,95584.0,95573.0,0.104631]
[1732767454202,0.104627,95578.0,95570.0,0.104634]
[1732767454418,0.104627,95578.0,95569.0,0.209272]
[1732767454642,0.00231494,95583.0,95566.0,0.31212421]
[1732767454863,0.104627,95578.0,95570.0,0.104634]
[1732767455077,0.00231494,95581.0,95566.0,0.31212421]
[1732767455311,0.104628,95577.0,95571.0,0.104634]
[1732767455528,0.00231494,95579.0,95567.0,0.209277]
[1732767455747,0.104628,95577.0,95570.0,0.107635]
[1732767455965,0.104629,95576.0,95570.0,0.107635]
[1732767456436,0.00231494,95578.0,95571.0,0.104633]
[1732767456659,0.00231494,95578.0,95571.0,0.003]
[1732767456898,0.104633,95572.0,95571.0,0.003]
[1732767457110,0.2348602,95600.0,95571.0,0.003]
[1732767457111,0.209238,95585.0,95571.0,0.003]
[1732767457320,0.00231521,95589.0,95571.0,0.003]
[1732767457321,0.104632,95574.0,95571.0,0.003]
[1732767457575,0.00231499,95584.0,95571.0,0.003]
[1732767457812,0.104631,95574.0,95571.0,0.003]
[1732767458044,0.00231499,95580.0,95566.0,0.001]
[1732767458264,0.104634,95571.0,95570.0,0.003]
[1732767458742,0.209274,95569.0,95545.0,0.104661]
[1732767458979,0.209295,95559.0,95546.0,0.10284521]
[1732767459440,0.00231532,95558.0,95546.0,0.10284521]
[1732767459645,0.00231538,95567.0,95546.0,0.10344772]
[1732767459875,0.209253,95578.0,95547.0,0.0006025]
[1732767459876,0.00231532,95577.0,95547.0,0.0006025]
[1732767460128,0.104642,95564.0,95553.0,0.104653]
[1732767460355,0.104642,95564.0,95554.0,0.104651]
[1732767460619,0.00231531,95566.0,95548.0,0.10284521]
[1732767460825,0.104641,95565.0,95556.0,0.10465]
[1732767461063,0.00231527,95564.0,95549.0,0.15]
[1732767461281,0.104649,95557.0,95551.0,0.15]
[1732767461508,0.00231532,95585.0,95552.0,0.10284521]
[1732767461723,0.104647,95559.0,95552.0,0.10284521]
[1732767462182,0.10465,95556.0,95552.0,0.10284521]
[1732767462402,0.209286,95563.0,95552.0,0.10284521]
[1732767462614,0.104645,95561.0,95552.0,0.10284521]
[1732767462827,0.209286,95563.0,95552.0,0.10284521]
[1732767463050,0.104644,95562.0,95552.0,0.20750021]
[1732767463288,0.104646,95560.0,95552.0,0.10284521]
[1732767463517,0.104646,95561.0,95552.0,0.20749921]
[1732767464202,0.104646,95561.0,95552.0,0.20849921]
[1732767464427,0.104646,95561.0,95552.0,0.20749921]
[1732767464679,0.104646,95561.0,95552.0,0.20849921]
[1732767464894,0.209272,95569.0,95552.0,0.10584521]
[1732767465108,0.104643,95563.0,95554.0,0.104652]
[1732767465546,0.209259,95576.0,95552.0,0.10584521]
[1732767465547,0.209214,95596.0,95561.0,0.104644]
[1732767465760,0.104634,95571.0,95561.0,0.104645]
[1732767465980,0.00231519,95589.0,95558.0,0.104647]
[1732767466197,0.16586289,95604.0,95558.0,0.15]
[1732767466198,0.1051604,95588.0,95558.0,0.15]
[1732767466415,0.209289,95562.0,95558.0,0.15]
[1732767466663,0.104646,95560.0,95555.0,0.10284521]
[1732767466904,0.104644,95562.0,95555.0,0.10284521]
[1732767467152,0.104645,95561.0,95555.0,0.10284521]
[1732767467802,0.104645,95561.0,95558.0,0.003]
[1732767468014,0.104645,95561.0,95555.0,0.10284521]
[1732767468268,0.627711,95585.0,95546.0,0.1508575]
[1732767468511,0.209235,95586.0,95546.0,0.1508575]
[1732767468512,0.01564242,95570.0,95555.0,0.004]
[1732767468722,0.10465,95556.0,95555.0,0.003]
[1732767468932,0.10696539,95556.0,95555.0,0.003]
[1732767469358,0.10466,95547.0,95546.0,0.0008575]
[1732767469568,0.10466,95547.0,95546.0,0.0018575]
[1732767470212,0.359235,95586.0,95546.0,0.0018575]
[1732767470457,0.104659,95549.0,95546.0,0.0018575]
[1732767470688,0.00231556,95560.0,95546.0,0.0018575]
[1732767470912,0.104657,95550.0,95546.0,0.0068575]
[1732767471163,0.104657,95550.0,95546.0,0.0018575]
[1732767471378,0.20931,95552.0,95546.0,0.0018575]
[1732767471596,0.104658,95549.0,95546.0,0.0018575]
[1732767471825,0.104658,95549.0,95546.0,0.0008575]
[1732767472042,0.209243,95583.0,95547.0,0.10284521]
[1732767472263,0.10465,95557.0,95547.0,0.10284521]
[1732767472488,0.00231541,95568.0,95547.0,0.10284521]
[1732767472705,0.104653,95554.0,95547.0,0.10284521]
[1732767473355,0.209303,95555.0,95547.0,0.10284521]
[1732767473604,0.104654,95553.0,95547.0,0.10284521]
[1732767473827,0.209303,95555.0,95547.0,0.10284521]
[1732767474046,0.313955,95555.0,95547.0,0.10284521]
[1732767474281,0.209303,95555.0,95547.0,0.10284521]
[1732767474909,0.104653,95554.0,95547.0,0.10484521]
[1732767475130,0.104653,95554.0,95547.0,0.10784521]
[1732767475584,0.104653,95554.0,95547.0,0.21250521]
[1732767475805,0.01,95587.0,95547.0,0.21250521]
[1732767475806,0.41854,95570.0,95547.0,0.10584521]
[1732767476054,0.209271,95570.0,95551.0,0.15]
[1732767476259,0.104643,95563.0,95553.0,0.254653]
[1732767476491,0.104643,95563.0,95556.0,0.25465]
[1732767476743,0.104643,95563.0,95556.0,0.25284521]
[1732767476954,0.104643,95563.0,95556.0,0.35749521]
[1732767477171,0.209275,95568.0,95556.0,0.25284521]
[1732767477381,0.104643,95563.0,95556.0,0.25284521]
[1732767477587,0.209275,95568.0,95556.0,0.25284521]
[1732767477588,0.104644,95562.0,95556.0,0.25284521]
[1732767478038,0.104644,95562.0,95556.0,0.25384521]
[1732767478898,0.104644,95562.0,95556.0,0.25284521]
[1732767479111,0.104644,95562.0,95556.0,0.25684521]
[1732767479569,0.104645,95561.0,95556.0,0.25684521]
[1732767480484,0.209283,95564.0,95556.0,0.25484521]
[1732767480705,0.0023152,95567.0,95556.0,0.25484521]
[1732767480936,0.104646,95560.0,95556.0,0.25684521]
[1732767481148,0.0023152,95578.0,95556.0,0.25684521]
[1732767481149,0.209253,95578.0,95556.0,0.25684521]
[1732767481380,0.104649,95557.0,95556.0,0.002]
[1732767481593,0.104649,95557.0,95556.0,0.004]
[1732767481807,0.104649,95557.0,95556.0,0.002]
[1732767482221,0.104649,95557.0,95547.0,0.1508575]
[1732767482222,0.104653,95554.0,95547.0,0.1508575]
[1732767482432,0.209303,95556.0,95548.0,0.10284521]
[1732767483114,0.104653,95554.0,95548.0,0.10284521]
[1732767483361,0.209285,95564.0,95548.0,0.10284521]
[1732767483570,0.209285,95564.0,95549.0,0.209316]
[1732767483571,0.00231537,95563.0,95549.0,0.209316]
[1732767483809,0.00231537,95563.0,95549.0,0.10284521]
[1732767483989,0.20928,95566.0,95549.0,0.10284521]
[1732767483990,0.00231536,95564.0,95549.0,0.10284521]
[1732767484200,0.00231536,95564.0,95552.0,0.20931]
[1732767484403,0.104643,95563.0,95556.0,0.10865]
[1732767484607,0.00231536,95564.0,95556.0,0.004]
[1732767484830,0.00231536,95564.0,95549.0,0.10284521]
[1732767484831,0.209288,95562.0,95550.0,0.209314]
[1732767485047,0.209288,95562.0,95552.0,0.104654]
[1732767485221,0.104645,95561.0,95552.0,0.104654]
[1732767485441,0.104646,95560.0,95552.0,0.104654]
[1732767485636,0.20928,95566.0,95556.0,0.003]
[1732767485876,0.00231536,95565.0,95556.0,0.006]
[1732767486024,0.104647,95560.0,95556.0,0.003]
[1732767486405,0.104647,95560.0,95553.0,0.104653]
[1732767486627,0.104647,95559.0,95552.0,0.003]
[1732767487055,0.104647,95559.0,95552.0,0.107654]
[1732767487699,0.104645,95561.0,95554.0,0.104652]
[1732767487914,0.104641,95565.0,95557.0,0.104648]
[1732767488152,0.023,95592.0,95557.0,0.209299]
[1732767488361,0.209266,95572.0,95559.0,0.104646]
[1732767488630,0.209226,95590.0,95556.0,0.154]
[1732767488631,0.209275,95568.0,95556.0,0.154]
[1732767488851,0.209287,95563.0,95556.0,0.25284521]
[1732767489062,0.104645,95561.0,95557.0,0.002]
[1732767489566,0.104646,95560.0,95557.0,0.003]
[1732767489790,0.104644,95562.0,95557.0,0.001]
[1732767490270,0.209284,95564.0,95557.0,0.001]
[1732767490472,0.104648,95558.0,95557.0,0.001]
[1732767490900,0.0023154,95560.0,95556.0,0.001]
[1732767491142,0.104649,95557.0,95556.0,0.001]
[1732767491377,0.1069649,95557.0,95556.0,0.004]
[1732767491610,0.1069649,95557.0,95556.0,0.001]
[1732767491611,0.20981011,95557.0,95556.0,0.001]
[1732767492057,0.104653,95553.0,95552.0,0.0008575]
[1732767492271,0.10696893,95553.0,95552.0,0.0008575]
[1732767493632,0.104653,95553.0,95552.0,0.0008575]
[1732767494094,0.104653,95553.0,95552.0,0.0018575]
[1732767495619,0.211301,95557.0,95552.0,0.0018575]
[1732767495620,0.10665,95557.0,95552.0,0.0018575]
[1732767495863,0.104648,95558.0,95552.0,0.0018575]
[1732767496089,0.00231548,95557.0,95552.0,0.0018575]
[1732767496294,0.104653,95553.0,95552.0,0.0018575]
[1732767496514,0.104653,95553.0,95552.0,0.0008575]
[1732767496738,0.104653,95553.0,95552.0,0.0028575]
[1732767498257,0.104653,95553.0,95552.0,0.0008575]
[1732767499157,0.10465,95557.0,95552.0,0.0068575]
[1732767499384,0.209297,95558.0,95552.0,0.0068575]
[1732767499385,0.10465,95556.0,95552.0,0.0068575]
[1732767499595,0.104653,95553.0,95552.0,0.0038575]
[1732767500023,0.209283,95564.0,95552.0,0.0038575]
[1732767500232,0.104644,95562.0,95554.0,0.104652]
[1732767500448,0.001715,95588.0,95561.0,0.104644]
[1732767500653,0.10516039,95585.0,95556.0,0.209301]
[1732767500889,0.10464,95566.0,95558.0,0.104648]
[1732767501110,0.10516039,95585.0,95557.0,0.15]
[1732767501111,0.104642,95564.0,95557.0,0.15]
[1732767501314,0.104642,95564.0,95557.0,0.254649]
[1732767501441,0.104642,95564.0,95558.0,0.104648]
[1732767501657,0.104638,95567.0,95559.0,0.104646]
[1732767501862,0.10284521,95585.0,95557.0,0.359298]
[1732767501863,0.00231518,95584.0,95557.0,0.359298]
[1732767502054,0.104641,95565.0,95558.0,0.104648]
[1732767502664,0.209276,95568.0,95557.0,0.15]
[1732767502665,0.104643,95563.0,95557.0,0.15]
[1732767503107,0.104641,95565.0,95557.0,0.254649]
[1732767503286,0.001715,95566.0,95562.0,0.104644]
[1732767503500,0.001715,95566.0,95558.0,0.002]
[1732767503831,0.001715,95566.0,95557.0,0.15]
[1732767504036,0.001715,95566.0,95560.0,0.104645]
[1732767504238,0.10464,95565.0,95557.0,0.254648]
[1732767504723,0.10464,95565.0,95558.0,0.104647]
[1732767504940,0.10464,95565.0,95558.0,0.108647]
[1732767505151,0.10464,95565.0,95558.0,0.104647]
[1732767506204,0.10464,95565.0,95558.0,0.108647]
[1732767506639,0.001715,95566.0,95565.0,0.10464]
[1732767508187,0.001715,95566.0,95565.0,0.35932109]
[1732767508406,0.001715,95566.0,95565.0,0.5893195]
[1732767508636,0.001715,95566.0,95565.0,0.60485496]
[1732767508847,0.001715,95566.0,95565.0,0.37302067]
[1732767509283,0.001715,95566.0,95565.0,0.37602067]
[1732767509507,0.001715,95566.0,95565.0,0.37302067]
[1732767509723,0.001715,95566.0,95565.0,0.60477595]
[1732767509939,0.001715,95566.0,95565.0,0.37502067]
[1732767510374,0.001715,95566.0,95565.0,0.60477595]
[1732767510602,0.001715,95566.0,95565.0,0.37302067]
[1732767510820,0.001715,95566.0,95565.0,0.37902067]
[1732767511022,0.002715,95566.0,95565.0,0.38802067]
[1732767512977,0.002715,95566.0,95565.0,0.42102067]
[1732767513188,0.002715,95566.0,95565.0,0.43102067]
[1732767514070,0.002715,95566.0,95565.0,0.7084997]
[1732767514292,0.001715,95566.0,95565.0,0.6994997]
[1732767514560,0.001715,95566.0,95565.0,0.6934997]
[1732767514793,0.002715,95566.0,95565.0,0.41702067]
[1732767515016,0.001715,95566.0,95565.0,0.41602067]
[1732767515239,0.002715,95566.0,95565.0,0.41702067]
[1732767515450,0.002715,95566.0,95565.0,0.40702067]
[1732767515668,0.001715,95566.0,95565.0,0.41602067]
[1732767515887,0.001715,95566.0,95565.0,0.41702067]
[1732767516116,0.002715,95566.0,95565.0,0.41702067]
[1732767516558,0.002715,95566.0,95565.0,0.41802067]
[1732767517257,0.002715,95566.0,95565.0,0.41702067]
[1732767517510,0.002715,95566.0,95565.0,0.41802067]
[1732767519632,0.002715,95566.0,95565.0,0.41702067]
[1732767520086,0.002715,95566.0,95565.0,0.41802067]
[1732767520482,0.002715,95566.0,95565.0,0.41702067]
[1732767520900,0.002715,95566.0,95565.0,0.41802067]
[1732767521399,0.002715,95566.0,95565.0,0.41702067]
[1732767522054,0.001715,95566.0,95565.0,0.41602067]
[1732767522531,0.001715,95566.0,95565.0,0.41702067]
[1732767522532,0.002715,95566.0,95565.0,0.41702067]
[1732767522763,0.001715,95566.0,95565.0,0.41602067]
[1732767522976,0.002715,95566.0,95565.0,0.41702067]
[1732767523923,0.002715,95566.0,95565.0,0.41802067]
[1732767524363,0.002715,95566.0,95565.0,0.41702067]
[1732767524772,0.002715,95566.0,95565.0,0.41802067]
[1732767525644,0.002715,95566.0,95565.0,0.64894064]
[1732767525871,0.002715,95566.0,95565.0,0.41802067]
[1732767526728,0.001715,95588.0,95587.0,0.254616]
[1732767526932,0.001715,95588.0,95587.0,0.35746121]
[1732767528554,0.001715,95588.0,95587.0,0.36646121]
[1732767529213,0.001715,95588.0,95587.0,0.38266742]
[1732767529648,0.001715,95588.0,95587.0,0.39166742]
[1732767529877,0.001715,95588.0,95587.0,0.38266742]
[1732767530101,0.001715,95588.0,95587.0,0.37366742]
[1732767530326,0.001715,95588.0,95587.0,0.38166742]
[1732767530736,0.001715,95588.0,95587.0,0.39066742]
[1732767530944,0.001715,95588.0,95587.0,0.38266742]
[1732767531370,0.001715,95588.0,95587.0,0.39166742]
[1732767532257,0.001715,95588.0,95587.0,0.38266742]